Cogmind - Beta 10.2 @@@ ROGUE MODE // 2021.01.18 @ 18:54:08 Player: WayneKnight Result: Destroyed by as-52757 with Assembled Heavy Rifle Performance ------------- Evolutions (0) 0 Regions Visited (4) 800 Robots Destroyed (25) 125 Value Destroyed (527) 527 Prototype IDs (27) 540 Alien Tech Used (0) 0 Bonus (13) 13 TOTAL SCORE: 2005 Bonus ------- Follower Combat Kills 21 Friendly Fire -8 Cogmind --------- Core Integrity 0/250 Matter 138/300 Energy 50/100 System Corruption 9% Temperature Cool (0) Movement Treading (220) Ox3 Location -9/Mines Parts ------- > --- POWER (1) -------- (None) > --- PROPULSION (2) --- Light Treads Aluminum Leg > --- UTILITY (2) ------ High-capacity Storage Unit High-capacity Storage Unit > --- WEAPON (2) ------- Light Assault Rifle Light Assault Rifle > --- INVENTORY (20) --- Ion Engine Light Treads Light Treads Large Storage Unit High-capacity Storage Unit Experimental Sensor Array Light Armor Plating Medium Armor Plating Medium Armor Plating XL Autogun Array Rocket Launcher Maul Peak State ------------ > --- POWER ------------ Ion Engine > --- PROPULSION ------- Light Treads Light Treads > --- UTILITY ---------- High-capacity Storage Unit High-capacity Storage Unit > --- WEAPON ----------- Light Assault Rifle Light Assault Rifle > --- INVENTORY -------- Ion Engine Ion Engine Light Treads Light Treads Light Treads Aluminum Leg Large Storage Unit Large Storage Unit Experimental Sensor Array Medium Armor Plating Medium Armor Plating Medium Armor Plating EM Pulse Gun XL Autogun Array Grenade Launcher Rocket Launcher [Rating: 13] Favorites ----------- Power Ion Engine Engine Ion Engine Propulsion Light Treads Treads Light Treads Leg Aluminum Leg Utility High-capacity Storage Unit Storage High-capacity Storage Unit Weapon Light Assault Rifle Energy Gun EM Pulse Gun Ballistic Gun Light Assault Rifle Launcher Grenade Launcher Impact Weapon Maul Build | -11 -10 -10 -10 -9 ------- Run | Scr Mat Min Exi Min Slots Evolved . | . . . . . Power . | . . . . . Propulsion . | . . . . . Utility . | . . . . . Weapon . | . . . . . Parts Attached 22 | 4 5 . 3 10 Power 2 | . 1 . . 1 Engine 2 | . 1 . . 1 Core . | . . . . . Reactor . | . . . . . Propulsion 4 | 2 . . . 2 Treads 3 | 2 . . . 1 Leg 1 | . . . . 1 Wheel . | . . . . . Hover . | . . . . . Flight . | . . . . . Utility 4 | 1 2 . 1 . Device . | . . . . . Storage 4 | 1 2 . 1 . Processor . | . . . . . Hackware . | . . . . . Protection . | . . . . . Artifact . | . . . . . Weapon 12 | 1 2 . 2 7 Energy Gun 2 | 1 . . . 1 Energy Cannon . | . . . . . Ballistic Gun 8 | . 2 . 2 4 Ballistic Cannon . | . . . . . Launcher 1 | . . . . 1 Special Weapon . | . . . . . Impact Weapon 1 | . . . . 1 Slashing Weapon . | . . . . . Piercing Weapon . | . . . . . Special Melee Weapon . | . . . . . Unidentified Prototypes . | . . . . . Parts Lost 6 | . . . . 6 Power 1 | . . . . 1 Propulsion 2 | . . . . 2 Utility . | . . . . . Weapon 3 | . . . . 3 Highest Loss Streak 6 | . . . . 6 Average Slot Usage (%) 96 | . 100 100 90 98 Engine 13 | . 14 14 14 12 Treads 27 | . 28 28 28 26 Storage 28 | . 28 28 28 28 Ballistic Gun 24 | . 27 28 18 26 Naked Turns . | . . . . . Heaviest Build 72 | 16 55 55 71 72 Greatest Support 40 | 40 40 40 40 40 Greatest Overweight (x) 3 | . 1 1 1 3 Average Overweight (x) . | . . 1 1 1 Largest Inventory Capacity 20 | 8 18 18 20 20 Average Capacity 17 | 6 15 18 18 20 Most Carried 20 | 6 18 18 20 20 Average Carried 16 | 5 12 17 17 19 Final Capacity 20 | 8 18 18 20 20 Final Carried 20 | 4 17 18 20 15 Class Distribution -------------------- 68% | Mutant 24% | Hauler-Mutant 6% | Commander-Mutant Dominant Class ---------------- Mutant | -10/Materials Mutant | -10/Mines Mutant | -10/Exiles Hauler-Mutant | -9/Mines Resources | -11 -10 -10 -10 -9 ----------- Run | Scr Mat Min Exi Min Matter Collected 509 | 204 229 . 30 46 Remotely . | . . . . . Salvage Created 1038 | 54 645 . 53 286 Parts 61 | 3 42 . 1 15 Haulers Intercepted 2 | . 2 . . . Recyclers Shooed . | . . . . . Parts Field Recycled . | . . . . . Retrieved Matter . | . . . . . Parts Self-Destructed . | . . . . . Prevented . | . . . . . Kills | -11 -10 -10 -10 -9 ------- Run | Scr Mat Min Exi Min Combat Hostiles Destroyed 33 | . 12 . . 21 Melee 1 | . . . . 1 Guns 19 | . 12 . . 7 AOE 13 | . . . . 13 Classes Destroyed 8 | 1 5 . . 2 Worker 1 | . 1 . . . Hauler 2 | . 2 . . . Recycler 2 | 1 1 . . . Watcher 3 | . 3 . . . Swarmer 6 | . 6 . . . Grunt 10 | . 6 . . 4 Brawler 1 | . . . . 1 Assembled 16 | . . . . 16 Best Kill Streak 16 | 1 5 . . 16 Combat Bots Only 16 | . 4 . . 16 Max Kills in Single Turn 4 | 1 1 . . 4 Gunslinging . | . . . . . Exploded 4 | . . . . 4 Melee 1 | . . . . 1 Uniques/NPCs Destroyed . | . . . . . Combat | -11 -10 -10 -10 -9 -------- Run | Scr Mat Min Exi Min Damage Taken 1330 | . 177 . . 1153 Core 255 | . 8 . . 247 Absorbed by Shields . | . . . . . Core Remaining (%) 100 | 100 . . . . Volleys Fired 90 | 4 50 . 5 31 Largest 2 | 2 2 . 2 2 Hottest 60 | 60 60 . 40 60 Shots Fired 166 | 8 100 . 10 48 Gun 157 | 8 100 . 10 39 Cannon . | . . . . . Launcher 9 | . . . . 9 Special . | . . . . . Kinetic 141 | 4 89 . 10 38 Thermal 4 | 4 . . . . Explosive 9 | . . . . 9 Electromagnetic 12 | . 11 . . 1 Robot Hit Streak 20 | 7 13 . 7 20 Robot Miss Streak 4 | 1 4 . 1 4 Penetration Max . | . . . . . Secondary Targets 3 | . 1 . . 2 Max Gunslinging Chain 1 | . 1 . . 1 Shots Hit Robots 109 | 7 61 . 8 33 Core Hits 85 | 2 37 . 4 42 Critical Hits 3 | 1 1 . . 1 Critical Kills . | . . . . . Critical Parts Destroyed 3 | 1 1 . . 1 Melee Attacks 2 | . . . . 2 Impact 2 | . . . . 2 Slashing . | . . . . . Piercing . | . . . . . Sneak Attacks . | . . . . . Combat Hostiles . | . . . . . Follow-up Attacks . | . . . . . Damage Inflicted 1974 | 64 559 . 64 1287 Guns 903 | 64 536 . 64 239 Cannons . | . . . . . Explosions 1006 | . . . . 1006 Melee 42 | . . . . 42 Ramming 23 | . 23 . . . Kinetic 768 | 22 454 . 64 228 Thermal 42 | 42 . . . . Explosive 1006 | . . . . 1006 Electromagnetic 93 | . 82 . . 11 Impact 42 | . . . . 42 Slashing . | . . . . . Piercing . | . . . . . Highest Corruption 9 | . 2 2 2 9 Average Corruption 2 | . 2 2 2 2 Corruption Purged . | . . . . . Effects 43 | . 19 1 12 11 Message Errors 14 | . 5 1 6 2 Heat Flow Errors 8 | . 5 . 3 . Energy Discharges 9 | . 5 . 1 3 Data Loss (minor) 7 | . 2 . 2 3 Targeting Errors 4 | . 2 . . 2 Weapon Failures 1 | . . . . 1 Overload Shots . | . . . . . Overflow Damage 90 | . . . . 90 Projectiles . | . . . . . Explosions 90 | . . . . 90 Melee . | . . . . . Knockbacks . | . . . . . Impact . | . . . . . Kinetic . | . . . . . Secondary . | . . . . . Self-Inflicted Damage 116 | . . . . 116 Shots 5 | . . . . 5 Rammed 3 | . 2 . . 1 Targets Rammed 4 | . 3 . . 1 Kicked . | . . . . . Crushed 1 | . 1 . . . Highest Temperature 274 | 20 234 . 274 40 Average Temperature 69 | 15 68 . 122 13 Received Heat Transfer 242 | . 42 . . 200 Siege Activations . | . . . . . Robots Corrupted . | . . . . . Combat Hostiles . | . . . . . Parts Fried . | . . . . . Impact Corruptions . | . . . . . Robots Melted . | . . . . . Combat Hostiles . | . . . . . Parts Melted . | . . . . . Heat Transferred 100 | 100 . . . . Parts Sabotaged . | . . . . . Parts Stolen . | . . . . . Parts Stripped . | . . . . . Power Chain Reactions . | . . . . . Missiles Intercepted . | . . . . . Alert | -11 -10 -10 -10 -9 ------- Run | Scr Mat Min Exi Min Peak Influence 295 | 5 295 28 . 120 Initial 28 | . 3 28 . . Average 76 | 3 122 23 . 32 Maximum Alert Level 1 | . 1 . . . Low Security (%) 93 | 100 87 100 . 100 Level 1 6 | . 12 . . . Level 2 . | . . . . . Level 3 . | . . . . . Level 4 . | . . . . . Level 5 . | . . . . . High Security . | . . . . . Max Security . | . . . . . Squads Dispatched 2 | . 2 . . . Investigation 2 | . 2 . . . Extermination . | . . . . . Reinforcement . | . . . . . Assault . | . . . . . Garrison . | . . . . . Intercept . | . . . . . Construction Impeded . | . . . . . Haulers Reinforced . | . . . . . Stealth | -11 -10 -10 -10 -9 --------- Run | Scr Mat Min Exi Min Distress Signals 2 | . 2 . . . Communications Jammed . | . . . . . Distress Signals . | . . . . . Times Spotted 51 | . 24 . . 27 Peak Tracking Total 13 | . 5 . . 13 Tactical Retreats 4 | . 3 . . 1 Traps | -11 -10 -10 -10 -9 ------- Run | Scr Mat Min Exi Min Traps Triggered 1 | . 1 . . . Indirectly . | . . . . . Trap Hack Attempts . | . . . . . Triggered . | . . . . . Disarmed . | . . . . . Reprogrammed . | . . . . . Reused . | . . . . . Traps Extracted . | . . . . . Installed . | . . . . . Triggered . | . . . . . Machines | -11 -10 -10 -10 -9 ---------- Run | Scr Mat Min Exi Min Machines Disabled . | . . . . . Max in Single Turn . | . . . . . Machines Sabotaged . | . . . . . Garrisons Compromised . | . . . . . Overloaded Fab Kills . | . . . . . Fab Network Shutdowns . | . . . . . Hacking | -11 -10 -10 -10 -9 --------- Run | Scr Mat Min Exi Min Machines Accessed 12 | . 10 . 2 . Terminals 7 | . 7 . . . Fabricators . | . . . . . Repair Stations 1 | . 1 . . . Recycling Units 2 | . 2 . . . Scanalyzers . | . . . . . Garrison Access . | . . . . . Total Hacks 28 | . 26 . 2 . Successful 18 | . 16 . 2 . Failed 10 | . 10 . . . Catastrophic . | . . . . . Database Lockouts . | . . . . . Manual 16 | . 15 . 1 . Terminals 21 | . 21 . . . Fabricators . | . . . . . Repair Stations 3 | . 3 . . . Recycling Units 2 | . 2 . . . Scanalyzers . | . . . . . Garrison Access . | . . . . . Terminal Hacks 10 | . 8 . 2 . Record 1 | . . . 1 . Robot Analysis 3 | . 3 . . . Prototype ID Bank 2 | . 2 . . . Locate Traps 3 | . 3 . . . EX-Prototype ID Bank 1 | . . . 1 . Fabricator Hacks . | . . . . . Repair Station Hacks 2 | . 2 . . . Scan Component 1 | . 1 . . . Repair 1 | . 1 . . . Recycling Unit Hacks . | . . . . . Scanalyzer . | . . . . . Garrison Access Hacks . | . . . . . Unauthorized Hacks 6 | . 6 . . . Terminals 4 | . 4 . . . Track 1 | . 1 . . . Botnet 2 | . 2 . . . Operators 1 | . 1 . . . Fabricators . | . . . . . Repair Stations . | . . . . . Recycling Units 2 | . 2 . . . Tunnel 2 | . 2 . . . Scanalyzers . | . . . . . Garrison Access . | . . . . . Data Cores Recovered . | . . . . . Used . | . . . . . Hacking Detections 8 | . 8 . . . Full Trace Events . | . . . . . Feedback Events . | . . . . . Feedback Blocked . | . . . . . Robot Schematics Acquired . | . . . . . Robots Built . | . . . . . Matter . | . . . . . Time . | . . . . . Total Robot Build Rating . | . . . . . Part Schematics Acquired . | . . . . . Parts Built . | . . . . . Matter . | . . . . . Time . | . . . . . Total Part Build Rating . | . . . . . Parts Repaired 1 | . 1 . . . Time 26 | . 26 . . . Parts Recycled . | . . . . . Recycled Matter . | . . . . . Retrieved Matter . | . . . . . Retrieved Components . | . . . . . Parts Scanalyzed . | . . . . . Part Schematics Acquired . | . . . . . Parts Damaged . | . . . . . Bothacking | -11 -10 -10 -10 -9 ------------ Run | Scr Mat Min Exi Min Used RIF Installer . | . . . . . Robots Hacked . | . . . . . Non-combat . | . . . . . Combat . | . . . . . Robot Hacks Applied . | . . . . . Relay Couplers Released . | . . . . . Robots Rewired 2 | . . . 2 . Allies Hacked . | . . . . . Hacks Repelled . | . . . . . Allies | -11 -10 -10 -10 -9 -------- Run | Scr Mat Min Exi Min Total Allies 5 | . . . 2 3 Largest Group 5 | . . . 2 5 Highest-Rated Group 56 | . . . 16 56 Highest-Rated Ally 16 | . . . 8 16 Total Orders . | . . . . . Ally Attacks 19 | . . . . 19 Total Damage 211 | . . . . 211 Kills 3 | . . . . 3 Allies Corrupted . | . . . . . Allies Melted . | . . . . . Intel | -11 -10 -10 -10 -9 ------- Run | Scr Mat Min Exi Min Robot Analysis Total 3 | . 3 . . . Derelict Logs Recovered 1 | . . . . 1 Drone Launches . | . . . . . Drone Recoveries . | . . . . . Exploration | -11 -10 -10 -10 -9 ------------- Run | Scr Mat Min Exi Min Turns Passed 3909 | 39 1402 471 1176 821 Spaces Moved 1942 | 17 658 262 622 383 Core . | . . . . . Treads 1928 | 3 658 262 622 383 Legs 14 | 14 . . . . Wheels . | . . . . . Hover . | . . . . . Flight . | . . . . . Fastest Speed 120 | 120 160 180 180 180 Average Speed 177 | 127 174 180 180 180 Slowest Speed 220 | 160 180 180 180 220 Overloaded Moves . | . . . . . Propulsion Burnouts . | . . . . . Robots Hopped . | . . . . . Cave-ins Triggered . | . . . . . Exploration Rate (%) 65 | 3 99 63 90 73 Regions Visited 4 Branch Regions 3 Pre-discovered Areas 4 | . 2 1 1 . Known Exits Taken . | . . . . . Unknown Exits Taken 4 | 1 1 1 1 . Scrap Searched 4 | . . . . 4 Spaces Dug . | . . . . . Terrain Destroyed 53 | . . . . 53 Melee . | . . . . . Projectile . | . . . . . AOE 53 | . . . . 53 Terrain Rammed . | . . . . . Walls Destroyed . | . . . . . Machines Disabled . | . . . . . Actions | -11 -10 -10 -10 -9 --------- Run | Scr Mat Min Exi Min Total 2260 | 26 831 262 673 468 Wait 128 | . 94 . . 34 Move 1938 | 16 657 261 621 383 Hop . | . . . . . Pick Up 22 | . 16 1 2 3 Fast Attach 1 | 1 . . . . Attach 8 | . . . 2 6 Detach 2 | . . . 2 . Swap 13 | 3 5 . 1 4 Drop 16 | 2 6 . 4 4 Fire 90 | 4 50 . 5 31 Melee 2 | . . . . 2 Ram . | . . . . . Kick . | . . . . . Crush 4 | . 3 . . 1 Escape Stasis . | . . . . . Rewire 36 | . . . 36 . Trap . | . . . . . Miscellaneous . | . . . . . Route ------- -11/Scrapyard -10/Materials (discovered 5 exits: [*Mat x3] / [*Min x2]) -10/Mines (discovered 2 exits: [*Mat] / *Exi) -10/Exiles (discovered 2 exits: [*Min x2]) -9/Mines (discovered 2 exits: [*Mat x2]) History --------- Turn | Location | Event 13 | -11/Scrapyard | Discovered new exit (range 3) 40 | -11/Scrapyard | Entered Materials 255 | -10/Materials | Discovered new exit (range 6) 318 | -10/Materials | Build established: Mutant 646 | -10/Materials | Repaired Lgt. Treads 855 | -10/Materials | Discovered new exit (range 7) 1131 | -10/Materials | Discovered new exit (range 14) 1264 | -10/Materials | Discovered new exit (range 16) 1387 | -10/Materials | Discovered new exit (range 6) 1442 | -10/Materials | Entered Mines 1459 | -10/Mines | Found a damaged Exp. Sensor Array with a note attached 1462 | -10/Mines | Found Prototype Device 1463 | -10/Mines | Met a Derelict bent on vengeance 1668 | -10/Mines | Discovered new exit (range 16) 1902 | -10/Mines | Deemed a non-threat by the Exiles lab entrance 1904 | -10/Mines | Discovered new exit (range 5) 1913 | -10/Mines | Entered Exiles 1913 | -10/Exiles | Found Exiles lab destroyed 2099 | -10/Exiles | Opened EX-Vault 2608 | -10/Exiles | Learned location of Zion (-7) 2728 | -10/Exiles | Discovered new exit (range 14) 2900 | -10/Exiles | Found XL Autogun Array 2958 | -10/Exiles | Build established: Hauler-Mutant 3064 | -10/Exiles | Discovered new exit (range 15) 3089 | -10/Exiles | Entered Mines 3089 | -9/Mines | Accompanied by 2 allies 3249 | -9/Mines | Assisted by bots powering up and referring to "LRC-V3" 3326 | -9/Mines | Found a hidden stash of uninstalled traps 3517 | -9/Mines | Discovered new exit (range 6) 3581 | -9/Mines | Discovered new exit (range 8) 3583 | -9/Mines | Learned 8 Materials zone layouts 3660 | -9/Mines | Received a Rocket Launcher from a helpful Derelict 3821 | -9/Mines | Assembled infested the area 3826 | -9/Mines | Assisted by a Guerilla fighting off Assembled 3871 | -9/Mines | Core integrity fell below 50% 3885 | -9/Mines | Core integrity fell below 20% 3910 | -9/Mines | Destroyed by as-52757 with Assembled Heavy Rifle Last Messages --------------- 03882_ The unstable cave ceiling collapses. 03882_ K-01 Serf collects debris. 03884_ The unstable cave ceiling collapses. 03886_ K-01 Serf collects debris. 03887_ Lgt. Assault Rifle destroyed. 03888_ The unstable cave ceiling collapses. 03890_ K-01 Serf collects debris. 03892_ as-66446 destroyed. 03894_ K-01 Serf collects debris. 03895_ Acquired 4 matter. 03899_ K-01 Serf collects debris. 03900_ as-16192 destroyed. 03901_ The unstable cave ceiling collapses. 03904_ K-01 Serf collects debris. 03907_ XTJ |BVP=G7 DG FYS%45=7|EQZ3KXY 03907_ U-05 Engineer lays Concrete. 03908_ K-01 Serf collects debris. 03908_ U-05 Engineer lays Concrete. 03909_ K-01 Serf collects debris. 03909_ U-05 Engineer lays Concrete. Map ----- +----------------------------------------------------+ | ?????????????????????# ???????????????????# | | ?????????????????##?## ?????????????###???# | | ?????????????????? ## ???????# ### ??# | | ??????????????????? #??????# ## | | ???????????????????? ##?### | | ???????????????????? ## [ | | ????????????????????? ???#### #### | | ?????????????????????? ???????###????## | | ??????????????????????# #?????????????## | | ??????????????????????# = #?????????????# | | ??????????????????????#*%# # #??????????#### | | ?????????????????????## [ #?# #??????????# | | ????????????????????## ### ############ ### | | ????????????????????# /%## ### | | ????????????????????# * ############### | | ????????????????????# ######?????????????# | | ????????????????????# #???????????????#### | | ????????????????????## #??########?????# | | ?????????????????????# #??# %%%#?????# | | ??????????????????#### #??# """=####### ### | | ??????????????????# u #??# """!%*%!=[= #?#% | | ??????????????????# k #??# """%#######]#?#/ | | ??????????????????# ##?# =*=#?????# #?## | | ??????????????????# k #?# %==#?????# #??? | | ?????????????????## #?# *#????## #??? | | ?????????????????# @ ##?# #????# #??? | | ?????????????????## a # #?########???# #?? | | ??????????????????# #??????????# #?? | | ????????????????? # #?????????# ##?? | | ??????????????? a #????????# ##??? | | ????????????? #????????## #????? | | ??????????? ##?????????####?????? | | ?????????? ## #???????????????????? | | ??????????? #?# #???????????????????? | | ??????????? ##??# ???????????????????? | | ????????????###????##### ???????????????????? | | ????????????????????????# ##??????????????????? | | ?????????????????????????###???????????????????? | | ???????????????????????????????????????????????? | | ???????????????????????????????????????????????? | | | | | | | | | | | | | | | | | | | | | +----------------------------------------------------+ Best States ------------- Heat Dissipation 25 Energy Generation 10 Energy Capacity 250 Matter Stores 300 Matter Capacity 300 Sight Range 16 Terrain Scan Density 10 Evasion (%) 40 Recoil Reduction 2 Item Schematics ----------------- None Robot Schematics ------------------ None Fabricated ------------ Nothing Alien Tech Used ----------------- None Achievements -------------- None Challenges ------------ None Game ------ Seed ShieldHoverFlamer Manual? 0 Play Time 00:14:36 Cumulative 217.4 hours Start 2021.01.18 @ 18:40:21 End 2021.01.18 @ 18:54:08 Sessions 1 Manual Loads 0 Difficulty Rogue Special Mode None Game No. 162 Rogue 162 Adventurer 0 Explorer 0 Win Type - Total 6 Types 6/0/0/0/0/0/0/0/0 Lore% 53 Gallery% 63 Achievement% 46 Wizard Run 0 Options --------- ASCII 1 Keyboard 1 Movement Arrows Keybinds 0 Fullscreen 1 Font 24/Proggy Map View 76x50 Tactical HUD 1 Map Filters NONE Filters NONE Steam 1 RUN: 79051416-bee6-44fc-863c-f5d1ae371ca9